bitfinex/quotes_BTCUSD_20240815
["timestamp","ask_amount","ask_price","bid_price","bid_amount"]
[1723741004152,0.02228727,59612.0,59611.0,0.250454]
[1723741004368,0.02228727,59612.0,59611.0,0.0827]
[1723741004369,0.00636953,59612.0,59611.0,0.0827]
[1723741004508,0.02228765,59612.0,59611.0,0.0827]
[1723741004702,0.02228765,59612.0,59611.0,0.250454]
[1723741005149,0.02228765,59612.0,59611.0,0.0837]
[1723741005304,0.02228765,59612.0,59611.0,0.251454]
[1723741005755,0.02228765,59612.0,59611.0,0.169754]
[1723741005959,0.02228696,59612.0,59611.0,0.169754]
[1723741006543,0.02228696,59612.0,59611.0,0.505262]
[1723741007604,0.02228696,59612.0,59611.0,0.169754]
[1723741008188,0.02228696,59612.0,59611.0,0.505262]
[1723741008786,0.02228694,59612.0,59611.0,0.84077]
[1723741009859,0.02228694,59612.0,59611.0,0.84067581]
[1723741010013,0.02228694,59612.0,59611.0,0.16965981]
[1723741010630,0.02228694,59612.0,59611.0,0.50516781]
[1723741011306,0.02228694,59612.0,59611.0,0.16965981]
[1723741011840,0.02228694,59612.0,59611.0,0.50516781]
[1723741012647,0.0063695,59612.0,59611.0,0.50516781]
[1723741013056,0.02228687,59612.0,59611.0,0.50516781]
[1723741013646,0.0063695,59612.0,59611.0,0.50516781]
[1723741013846,0.000827,59612.0,59611.0,0.50516781]
[1723741014761,0.0063693,59612.0,59611.0,0.50516781]
[1723741014964,0.000827,59612.0,59611.0,0.50516781]
[1723741015191,0.0063693,59612.0,59611.0,0.50516781]
[1723741015574,0.02228678,59612.0,59611.0,0.50516781]
[1723741015975,0.02228678,59612.0,59611.0,0.84067581]
[1723741016724,0.01674448,59612.0,59611.0,0.84067581]
[1723741016935,0.01674448,59612.0,59611.0,1.57848593]
[1723741016936,0.00636939,59612.0,59611.0,1.57848593]
[1723741017142,0.000827,59612.0,59611.0,1.57848593]
[1723741017340,0.000827,59612.0,59611.0,2.28593334]
[1723741017514,0.000827,59612.0,59611.0,2.386283]
[1723741017721,0.000827,59612.0,59611.0,2.387283]
[1723741017928,0.000827,59612.0,59611.0,2.385283]
[1723741018127,0.000827,59612.0,59611.0,1.63577344]
[1723741018557,0.000827,59612.0,59611.0,1.59558012]
[1723741018785,0.000827,59612.0,59611.0,0.69205545]
[1723741018930,0.000827,59612.0,59611.0,0.641862]
[1723741019128,0.000827,59612.0,59611.0,0.99137]
[1723741019357,0.000827,59612.0,59611.0,0.97737]
[1723741019555,0.000827,59612.0,59611.0,0.99037]
[1723741019776,0.000827,59612.0,59611.0,1.00337]
[1723741019928,0.000827,59612.0,59611.0,0.99037]
[1723741020167,0.000827,59612.0,59611.0,1.325878]
[1723741020357,0.000827,59612.0,59611.0,1.46348645]
[1723741020789,0.000827,59612.0,59611.0,1.45048645]
[1723741021017,0.000827,59612.0,59611.0,1.62204099]
[1723741021167,0.000827,59612.0,59611.0,2.00297124]
[1723741021344,0.000827,59612.0,59611.0,2.01297124]
[1723741021605,0.000827,59612.0,59611.0,2.00297124]
[1723741021810,0.000827,59612.0,59611.0,2.06925985]
[1723741021967,0.00062507,59612.0,59611.0,1.63604099]
[1723741022168,0.00062507,59612.0,59611.0,1.63504099]
[1723741022356,0.00062507,59612.0,59611.0,2.08226186]
[1723741022551,0.00062507,59612.0,59611.0,2.09626186]
[1723741022800,0.00062507,59612.0,59611.0,1.68622628]
[1723741023005,0.00062507,59612.0,59611.0,1.63604099]
[1723741023227,0.00062507,59612.0,59611.0,1.7113296]
[1723741023436,0.00062507,59612.0,59611.0,1.62204099]
[1723741024331,0.00062507,59612.0,59611.0,2.08226287]
[1723741024679,0.00062507,59612.0,59611.0,2.08326267]
[1723741024859,0.00062507,59612.0,59611.0,2.00797406]
[1723741025090,0.00062507,59612.0,59611.0,2.10837695]
[1723741025297,0.000827,59620.0,59619.0,1.17412]
[1723741025506,0.000827,59620.0,59619.0,1.55402682]
[1723741025718,0.000827,59620.0,59619.0,2.21116343]
[1723741026663,0.000827,59620.0,59619.0,2.27675785]
[1723741026865,0.000827,59620.0,59619.0,2.6485895]
[1723741027093,0.000826,59630.0,59629.0,1.509331]
[1723741027300,0.000826,59630.0,59629.0,2.27622518]
[1723741027511,0.000826,59630.0,59629.0,2.27617575]
[1723741027767,0.000826,59630.0,59629.0,2.71170144]
[1723741027976,0.000826,59630.0,59629.0,2.86832144]
[1723741028198,0.000826,59630.0,59629.0,2.88567875]
[1723741028363,0.000826,59630.0,59629.0,2.55027175]
[1723741028866,0.000826,59630.0,59629.0,2.56127175]
[1723741029119,0.000826,59630.0,59629.0,2.57527175]
[1723741029509,0.000826,59630.0,59629.0,2.55027175]
[1723741029751,0.000826,59630.0,59629.0,2.56427175]
[1723741030187,0.000826,59630.0,59629.0,2.56045451]
[1723741030394,0.000826,59630.0,59629.0,2.39915451]
[1723741030844,0.000826,59630.0,59629.0,2.41315451]
[1723741031070,0.000826,59630.0,59629.0,2.48815599]
[1723741031277,0.000826,59630.0,59629.0,2.44253648]
[1723741031499,0.000826,59630.0,59629.0,2.43150072]
[1723741031707,0.000826,59630.0,59629.0,2.37615451]
[1723741031910,0.000826,59630.0,59629.0,2.476106]
[1723741032139,0.000826,59630.0,59629.0,2.37615451]
[1723741032337,0.000826,59630.0,59629.0,0.70602185]
[1723741032514,0.000826,59630.0,59629.0,0.72002185]
[1723741032667,0.000826,59630.0,59629.0,0.54846731]
[1723741032872,0.000826,59630.0,59629.0,0.03135731]
[1723741033072,0.000826,59630.0,59629.0,0.88387431]
[1723741033272,0.000826,59630.0,59629.0,0.54846731]
[1723741033456,0.000826,59630.0,59629.0,0.53446731]
[1723741033651,0.000826,59630.0,59629.0,0.01735731]
[1723741034056,0.000826,59630.0,59629.0,0.19906031]
[1723741034286,0.000826,59630.0,59629.0,0.03135731]
[1723741034508,0.000826,59630.0,59629.0,0.01735731]
[1723741034710,0.415707,59629.0,59616.0,0.335479]
[1723741035030,0.415707,59629.0,59624.0,0.167717]
[1723741035031,0.167707,59628.0,59624.0,0.167717]
[1723741035455,0.248004,59629.0,59625.0,0.18823874]
[1723741035674,0.248004,59629.0,59626.0,0.08591207]
[1723741036434,0.248004,59629.0,59627.0,0.02050283]
[1723741037265,0.167706,59628.0,59627.0,0.02050283]
[1723741037468,0.000826,59630.0,59627.0,0.18821083]
[1723741037715,0.168527,59630.0,59628.0,0.06115479]
[1723741037891,0.168527,59630.0,59627.0,0.02050283]
[1723741038107,0.168527,59630.0,59629.0,0.02048092]
[1723741038318,0.503928,59630.0,59629.0,0.02048092]
[1723741038523,0.503928,59630.0,59617.0,0.335473]
[1723741038524,0.400427,59630.0,59617.0,0.335473]
[1723741038724,0.400427,59630.0,59627.0,0.001]
[1723741038725,0.167706,59628.0,59627.0,0.001]
[1723741038929,0.580218,59628.0,59627.0,0.003]
[1723741039129,0.91563,59628.0,59627.0,0.001]
[1723741039943,0.92117123,59628.0,59627.0,0.001]
[1723741040146,0.1388,59622.0,59613.0,0.24489315]
[1723741040350,0.0788,59621.0,59606.0,0.51557332]
[1723741040619,0.0788,59621.0,59606.0,0.0009097]
[1723741040620,0.167751,59612.0,59606.0,0.0009097]
[1723741040795,0.167751,59612.0,59607.0,0.167764]
[1723741040796,0.503253,59612.0,59607.0,0.167764]
[1723741040992,0.167751,59612.0,59608.0,0.167762]
[1723741041225,0.503253,59612.0,59606.0,0.1686747]
[1723741041428,0.982055,59612.0,59606.0,0.0009097]
[1723741042066,0.982055,59612.0,59611.0,0.0089097]
[1723741042271,0.982055,59612.0,59611.0,0.0229097]
[1723741042465,0.982055,59612.0,59611.0,0.0149097]
[1723741042898,0.982055,59612.0,59611.0,0.0289097]
[1723741043102,0.982055,59612.0,59611.0,0.0149097]
[1723741043296,1.32309934,59612.0,59611.0,0.0149097]
[1723741043499,1.32309934,59612.0,59611.0,0.0029097]
[1723741043931,1.33903452,59612.0,59611.0,0.0039097]
[1723741044066,1.32309934,59612.0,59611.0,0.0039097]
[1723741044271,1.32309934,59612.0,59611.0,0.0029097]
[1723741044503,1.33903477,59612.0,59611.0,0.0029097]
[1723741044702,1.34003477,59612.0,59611.0,0.0029097]
[1723741045066,1.34003477,59612.0,59611.0,0.0009097]
[1723741045270,1.34203477,59612.0,59611.0,0.0009097]
[1723741045499,1.320557,59612.0,59611.0,0.0009097]
[1723741045692,1.34003488,59612.0,59611.0,0.0009097]
[1723741045901,1.318557,59612.0,59611.0,0.0009097]
[1723741046103,1.34303279,59612.0,59611.0,0.0009097]
[1723741047336,1.32710027,59612.0,59611.0,0.0009097]
[1723741048426,1.321557,59612.0,59611.0,0.0009097]
[1723741048610,1.82861354,59612.0,59611.0,0.0009097]
[1723741049053,1.92861354,59612.0,59611.0,0.0009097]
[1723741049476,1.93415683,59612.0,59611.0,0.0009097]
[1723741049863,1.95715683,59612.0,59611.0,0.0009097]
[1723741050060,2.14463075,59612.0,59611.0,0.0009097]
[1723741050258,1.95715683,59612.0,59611.0,0.0009097]
[1723741050518,1.93415683,59612.0,59611.0,0.0009097]
[1723741050903,1.757059,59612.0,59611.0,0.0009097]
[1723741051409,1.77851914,59612.0,59611.0,0.0009097]
[1723741051621,1.76260242,59612.0,59611.0,0.0009097]
[1723741052313,1.42410042,59612.0,59611.0,0.0009097]
[1723741052705,1.42610034,59612.0,59611.0,0.0019097]
[1723741053044,1.42610034,59612.0,59611.0,0.0009097]
[1723741053045,1.42982134,59612.0,59611.0,0.0009097]
[1723741053300,1.43182134,59612.0,59611.0,0.0019097]
[1723741053502,1.431278,59612.0,59611.0,0.0029097]
[1723741053902,1.426278,59612.0,59611.0,0.0019097]
[1723741054105,1.431278,59612.0,59611.0,0.0029097]
[1723741054779,1.424278,59612.0,59611.0,0.0009097]
[1723741054981,1.443278,59612.0,59611.0,0.0029097]
[1723741055193,1.432278,59612.0,59611.0,0.0019097]
[1723741055616,1.440278,59612.0,59611.0,0.0029097]
[1723741055834,0.335536,59607.0,59601.0,0.167781]
[1723741056044,0.167772,59605.0,59601.0,0.167781]
[1723741056248,0.167772,59605.0,59602.0,0.01565798]
[1723741056467,0.167772,59605.0,59602.0,0.18343698]
[1723741056683,0.601523,59612.0,59603.0,0.05195605]
[1723741056684,0.266021,59612.0,59603.0,0.05195605]
[1723741056917,0.167761,59609.0,59605.0,0.167768]
[1723741057140,0.167761,59609.0,59605.0,0.2248629]
[1723741057340,0.167761,59609.0,59606.0,0.167767]
[1723741057541,0.004,59607.0,59606.0,0.167767]
[1723741057851,0.004,59607.0,59606.0,0.503303]
[1723741058079,0.167755,59611.0,59607.0,0.167764]
[1723741058284,0.398483,59616.0,59606.0,0.0766]
[1723741058490,0.335497,59613.0,59606.0,0.0766]
[1723741058694,0.207495,59620.0,59607.0,0.37683276]
[1723741058905,0.207495,59620.0,59610.0,0.335514]
[1723741058906,0.335475,59617.0,59610.0,0.335514]
[1723741059114,0.167741,59616.0,59612.0,0.16775]
[1723741059536,0.16774,59616.0,59612.0,0.16775]
[1723741059752,0.335475,59617.0,59613.0,0.02075672]
[1723741059959,0.503236,59614.0,59613.0,0.02075672]
[1723741060168,0.167758,59610.0,59606.0,0.244366]
[1723741060381,0.167758,59610.0,59606.0,0.34218326]
[1723741060798,0.167758,59610.0,59607.0,0.167765]
[1723741061056,0.335524,59609.0,59605.0,0.0009086]
[1723741061262,0.167768,59606.0,59605.0,0.0009086]
[1723741061690,0.503304,59606.0,59605.0,0.0009086]
[1723741061891,0.167768,59606.0,59605.0,0.0009086]
[1723741062105,0.1393,59616.0,59605.0,0.0009086]
[1723741062306,0.167768,59606.0,59605.0,0.0009086]
[1723741062509,0.167765,59607.0,59605.0,0.0009086]
[1723741062709,0.167765,59607.0,59606.0,0.002]
[1723741063789,0.335498,59613.0,59606.0,0.01562509]
[1723741064001,0.335498,59613.0,59607.0,0.0806]
[1723741064214,0.474784,59616.0,59606.0,0.01562509]
[1723741064215,0.167763,59608.0,59606.0,0.01562509]
[1723741064425,0.168765,59607.0,59606.0,0.02062509]
[1723741064638,0.504296,59607.0,59606.0,0.02582249]
[1723741064851,0.86648014,59607.0,59606.0,0.02582249]
[1723741065054,2.04055531,59607.0,59606.0,0.02582249]
[1723741065258,2.05041782,59607.0,59606.0,0.005]
[1723741065695,2.38594882,59607.0,59606.0,0.005]
[1723741065925,1.316476,59606.0,59605.0,0.0009086]
[1723741066138,2.24838069,59606.0,59605.0,0.0009086]
[1723741066787,1.99104888,59606.0,59605.0,0.0009086]
[1723741066990,1.63251288,59606.0,59605.0,0.0009086]
[1723741067121,0.4257825,59606.0,59605.0,0.0009086]
[1723741067337,0.3257825,59606.0,59605.0,0.0009086]
[1723741067540,0.9968545,59606.0,59605.0,0.0009086]
[1723741067789,0.9968545,59606.0,59605.0,0.01654191]
[1723741067992,0.18369792,59606.0,59605.0,0.0009086]
[1723741068428,0.52723392,59606.0,59605.0,0.01754191]
[1723741068708,0.53423392,59606.0,59605.0,0.01854191]
[1723741069249,0.53423392,59606.0,59605.0,0.0029086]
[1723741069460,0.19869792,59606.0,59605.0,0.02375301]
[1723741069660,0.53423392,59606.0,59605.0,0.01854191]
[1723741070143,0.52623392,59606.0,59605.0,0.01754191]
[1723741070344,0.52823392,59606.0,59605.0,0.01754191]
[1723741070550,0.52123392,59606.0,59605.0,0.01654191]
[1723741070752,0.18569792,59606.0,59605.0,0.01654191]
[1723741071789,0.18669847,59606.0,59605.0,0.01654191]
[1723741072168,0.18669843,59606.0,59605.0,0.01654191]
[1723741072623,0.52223443,59606.0,59605.0,0.01654191]
[1723741073532,0.52223443,59606.0,59605.0,0.18431291]
[1723741073533,0.01893043,59606.0,59605.0,0.18431291]
[1723741074119,0.01893043,59606.0,59605.0,0.51985491]
[1723741074326,0.01893043,59606.0,59605.0,0.18431291]
[1723741074541,0.01893043,59606.0,59605.0,0.02175301]
[1723741074955,0.01893043,59606.0,59605.0,0.01654191]
[1723741075487,0.01893043,59606.0,59605.0,1.16234854]
[1723741075701,0.003,59606.0,59605.0,1.55969054]
[1723741076541,0.001,59606.0,59605.0,1.55969054]
[1723741076775,0.000826,59620.0,59617.0,0.167736]
[1723741076977,0.0167567,59620.0,59618.0,0.167734]
[1723741077186,0.0167567,59620.0,59617.0,0.167736]
[1723741077396,0.0167567,59620.0,59619.0,0.02069096]
[1723741077812,0.0167567,59620.0,59617.0,0.167736]
[1723741078015,0.0167567,59620.0,59615.0,0.335485]
[1723741078187,0.0167567,59620.0,59618.0,0.18843592]
[1723741078188,0.0159307,59619.0,59618.0,0.18843592]
[1723741078387,0.000826,59620.0,59618.0,0.167734]
[1723741078610,0.01675599,59620.0,59618.0,0.167734]
[1723741079006,0.01775599,59620.0,59618.0,0.167734]
[1723741079209,0.01592999,59619.0,59618.0,0.167734]
[1723741079625,0.001826,59620.0,59618.0,0.167734]
[1723741079876,0.01775618,59620.0,59619.0,0.167731]
[1723741080091,0.001826,59620.0,59619.0,0.838657]
[1723741080287,0.003826,59620.0,59619.0,0.838657]
[1723741080491,0.003826,59620.0,59619.0,0.503194]
[1723741081129,0.01975572,59620.0,59617.0,0.062]
[1723741081332,0.000826,59620.0,59617.0,0.167735]
[1723741081538,0.000826,59620.0,59581.0,1.66885317]
[1723741081539,0.167743,59615.0,59611.0,0.167751]
[1723741081742,0.0607,59618.0,59612.0,0.16775]
[1723741081743,0.16774,59616.0,59612.0,0.16775]
[1723741081950,0.335476,59617.0,59608.0,0.167761]
[1723741082153,0.167755,59611.0,59608.0,0.167761]
[1723741082357,0.335476,59617.0,59606.0,0.082]
[1723741082557,0.167752,59612.0,59608.0,0.16776]
[1723741082969,0.167754,59611.0,59608.0,0.16776]
[1723741083186,0.503304,59606.0,59605.0,0.0009086]
[1723741083391,0.167768,59606.0,59605.0,0.0009086]
[1723741084000,0.503304,59606.0,59605.0,0.0009086]
[1723741084843,0.85576503,59606.0,59605.0,0.0089086]
[1723741085250,0.52022903,59606.0,59605.0,0.0089086]
[1723741085463,0.52022903,59606.0,59605.0,0.0149086]
[1723741085464,0.18569303,59606.0,59605.0,0.0149086]
[1723741085857,0.18560914,59606.0,59605.0,0.0149086]
[1723741086381,0.002,59606.0,59605.0,0.0149086]
[1723741086582,0.002,59606.0,59605.0,0.58451536]
[1723741086791,0.002,59606.0,59605.0,0.8537636]
[1723741087010,0.002,59606.0,59605.0,0.5182216]
[1723741087164,0.002,59606.0,59605.0,0.8537636]
[1723741088113,0.002,59606.0,59605.0,0.5182216]
[1723741088312,0.002,59606.0,59605.0,0.62309166]
[1723741089236,0.002,59606.0,59605.0,0.5182216]
[1723741089891,0.002,59606.0,59605.0,0.1826796]
[1723741090238,0.002,59606.0,59605.0,0.5182216]
[1723741090391,0.002,59606.0,59605.0,0.8537636]
[1723741090596,0.002,59606.0,59605.0,1.1893056]
[1723741090798,0.002,59606.0,59605.0,0.8537636]
[1723741094853,0.002,59606.0,59605.0,0.90399984]
[1723741095062,0.002,59606.0,59605.0,1.02531814]
[1723741095267,0.002,59606.0,59605.0,1.88999578]
[1723741095467,0.002,59606.0,59605.0,1.87833658]
[1723741096107,0.000827,59607.0,59606.0,1.174376]
[1723741096329,0.000827,59607.0,59606.0,1.7178975]
[1723741096536,0.000827,59607.0,59606.0,1.81836507]
[1723741096783,0.000827,59607.0,59606.0,1.7178975]
[1723741096993,0.000827,59607.0,59606.0,1.79325149]
[1723741097189,0.000827,59607.0,59606.0,1.45771549]
[1723741097393,0.000827,59607.0,59606.0,1.28616095]
[1723741097635,0.000827,59607.0,59606.0,0.91419399]
[1723741098052,0.000827,59607.0,59606.0,1.2861693]
[1723741098262,0.000827,59607.0,59606.0,0.91419399]
[1723741098468,0.002827,59607.0,59606.0,0.86584]
[1723741098973,0.002827,59607.0,59606.0,1.23781887]
[1723741099174,0.001827,59607.0,59606.0,1.22381887]
[1723741099506,0.001827,59607.0,59606.0,1.23481887]
[1723741099931,0.001827,59607.0,59606.0,0.527304]
[1723741100105,0.001827,59607.0,59606.0,0.57753834]
[1723741100305,0.001827,59607.0,59606.0,0.57753904]
[1723741100505,0.001827,59607.0,59606.0,0.57754153]
[1723741100706,0.001827,59607.0,59606.0,0.8992752]
[1723741101182,0.001827,59607.0,59606.0,0.86284]
[1723741101385,0.001827,59607.0,59606.0,0.91307724]
[1723741101589,0.001827,59607.0,59606.0,0.86284]
[1723741102587,0.001827,59607.0,59606.0,0.91307771]
[1723741103001,0.001827,59607.0,59606.0,0.86284]
[1723741103347,0.001827,59607.0,59606.0,0.91307771]
[1723741103539,0.001827,59607.0,59606.0,0.86284]
[1723741103757,0.001827,59607.0,59606.0,0.93819457]
[1723741103981,0.001827,59607.0,59606.0,1.31017029]
[1723741104180,0.001827,59607.0,59606.0,1.64570629]
[1723741104917,0.167747,59614.0,59610.0,0.168029]
[1723741105103,0.01591495,59613.0,59611.0,0.167753]
[1723741105328,0.01591495,59613.0,59610.0,0.168029]
[1723741105489,0.01591495,59613.0,59611.0,0.167753]
[1723741105699,0.229043,59615.0,59611.0,0.167753]
[1723741105898,0.18366084,59614.0,59610.0,0.168029]
[1723741106101,0.01591484,59613.0,59610.0,0.004273]
[1723741106303,0.01591483,59613.0,59610.0,0.004273]
[1723741106516,0.90527,59611.0,59610.0,0.004273]
[1723741106680,0.92118699,59611.0,59610.0,0.004273]
[1723741106910,0.58567898,59611.0,59610.0,0.004273]
[1723741107132,0.569762,59611.0,59610.0,0.004273]
[1723741107314,0.0665,59611.0,59610.0,0.004273]
[1723741107658,0.0665,59611.0,59610.0,0.006273]
[1723741107659,0.067327,59611.0,59610.0,0.006273]
[1723741107861,0.067327,59611.0,59610.0,0.000273]
[1723741108216,0.067327,59611.0,59610.0,0.008273]
[1723741108217,0.068327,59611.0,59610.0,0.008273]
[1723741108414,0.067327,59611.0,59610.0,0.000273]
[1723741108972,0.067327,59611.0,59610.0,0.009273]
[1723741109174,0.067327,59611.0,59610.0,0.004273]
[1723741109379,0.067327,59611.0,59610.0,0.000273]
[1723741109380,0.08324439,59611.0,59610.0,0.000273]
[1723741109793,0.0167444,59611.0,59610.0,0.16803]
[1723741109995,0.000827,59611.0,59610.0,0.16803]
[1723741110203,0.000827,59611.0,59610.0,0.839058]
[1723741110409,0.000827,59611.0,59610.0,0.16803]
[1723741110614,0.000827,59611.0,59610.0,0.17203]
[1723741111020,0.000827,59611.0,59610.0,0.17703]
[1723741111224,0.000827,59611.0,59610.0,0.16803]
[1723741111437,0.000827,59611.0,59610.0,0.17403]
[1723741111646,0.001827,59611.0,59610.0,0.013273]
[1723741112053,0.001827,59611.0,59610.0,0.18103]
[1723741112688,0.001827,59611.0,59610.0,0.5667801]
[1723741113699,0.001827,59611.0,59610.0,0.516544]
[1723741115190,0.001827,59611.0,59610.0,0.56680927]
[1723741115429,0.001827,59611.0,59610.0,0.90232327]
[1723741115778,0.001827,59611.0,59610.0,0.92745943]
[1723741115980,0.001827,59611.0,59610.0,0.18103]
[1723741116398,0.001827,59611.0,59610.0,0.06354119]
[1723741116399,0.01774364,59611.0,59610.0,0.06354119]
[1723741116800,0.01774364,59611.0,59610.0,0.23129819]
[1723741117024,0.01774364,59611.0,59610.0,0.18103]
[1723741117609,0.001827,59611.0,59610.0,0.18103]
[1723741118175,0.01774307,59611.0,59610.0,0.18103]
[1723741118606,0.01774307,59611.0,59610.0,0.23129819]
[1723741119063,0.01774307,59611.0,59610.0,0.06354119]
[1723741119279,0.01774307,59611.0,59610.0,0.06355767]
[1723741119985,0.01774307,59611.0,59610.0,0.56682867]
[1723741120253,0.001827,59611.0,59610.0,1.58860831]
[1723741120475,0.001827,59611.0,59610.0,1.52690831]
[1723741120708,0.001827,59611.0,59610.0,1.47015064]
[1723741121245,0.169581,59611.0,59610.0,0.46067691]
[1723741121491,0.58470474,59611.0,59610.0,0.013273]
[1723741122446,0.99701274,59611.0,59610.0,0.013273]
[1723741122669,1.02557725,59611.0,59610.0,0.013273]
[1723741124136,1.03542449,59611.0,59610.0,0.013273]
[1723741124335,0.69006925,59611.0,59610.0,0.013273]
[1723741125246,1.02557725,59611.0,59610.0,0.013273]
[1723741125362,0.04630725,59611.0,59610.0,0.013273]
[1723741125568,0.01774274,59611.0,59610.0,0.516544]
[1723741125771,0.01774274,59611.0,59610.0,0.57331858]
[1723741126587,0.01774274,59611.0,59610.0,0.516544]
[1723741127428,0.01774274,59611.0,59610.0,0.013273]
[1723741128860,0.01774274,59611.0,59610.0,0.18103]
[1723741129109,0.01774274,59611.0,59610.0,0.013273]
[1723741129313,0.0177413,59611.0,59610.0,0.013273]
[1723741129514,0.1854953,59611.0,59610.0,0.013273]
[1723741129749,0.8565113,59611.0,59610.0,0.013273]
[1723741129942,0.5210033,59611.0,59610.0,0.013273]
[1723741130340,0.9331113,59611.0,59610.0,0.013273]
[1723741130560,0.96167492,59611.0,59610.0,0.013273]
[1723741133323,0.96167467,59611.0,59610.0,0.013273]
[1723741134729,0.93311123,59611.0,59610.0,0.013273]
[1723741134929,0.09434123,59611.0,59610.0,0.013273]
[1723741135377,0.26209523,59611.0,59610.0,0.013273]
[1723741135792,0.01774123,59611.0,59610.0,0.53976974]
[1723741135942,0.01774123,59611.0,59610.0,0.59008041]
[1723741136739,0.01774123,59611.0,59610.0,0.013273]
[1723741137225,0.01774195,59611.0,59610.0,0.013273]
[1723741137859,0.01774195,59611.0,59610.0,0.18103]
[1723741138284,0.01774195,59611.0,59610.0,0.013273]
[1723741138735,0.01774195,59611.0,59610.0,0.2018196]
[1723741139958,0.01774195,59611.0,59610.0,0.0843676]
[1723741140379,0.01774195,59611.0,59610.0,0.2521246]
[1723741140730,0.001827,59611.0,59610.0,0.2521246]
[1723741140939,0.001827,59611.0,59610.0,0.71022963]
[1723741140940,0.01774128,59611.0,59610.0,0.71022963]
[1723741141186,0.01774135,59611.0,59610.0,0.37471563]
[1723741141595,0.01774135,59611.0,59610.0,0.5876386]
[1723741141795,0.01774135,59611.0,59610.0,0.5373336]
[1723741141992,0.001827,59611.0,59610.0,0.99121056]
[1723741142401,0.001827,59611.0,59610.0,1.82354857]
[1723741142600,0.001827,59611.0,59610.0,1.38742456]
[1723741142802,0.001827,59611.0,59610.0,1.48802706]
[1723741143248,0.001827,59611.0,59610.0,1.42732706]
[1723741143457,0.001827,59611.0,59610.0,1.32672456]
[1723741145089,0.001827,59611.0,59610.0,1.03020085]
[1723741145322,0.001827,59611.0,59610.0,1.40217289]
[1723741145522,0.001827,59611.0,59610.0,1.40217144]
[1723741145723,0.001827,59611.0,59610.0,1.32671964]
[1723741145922,0.001827,59611.0,59610.0,0.9547476]
[1723741146126,0.001827,59611.0,59610.0,1.00505015]
[1723741146327,0.01774122,59611.0,59610.0,1.00505015]
[1723741147222,0.01774122,59611.0,59610.0,1.00505125]
[1723741147628,0.001827,59611.0,59610.0,0.9547476]
[1723741148241,0.001827,59611.0,59610.0,1.00505062]
[1723741148562,0.01774119,59611.0,59610.0,1.00505062]
[1723741149799,0.01774119,59611.0,59610.0,1.00505119]
[1723741149998,0.01774119,59611.0,59610.0,0.9547476]
[1723741150157,0.001827,59611.0,59610.0,0.9547476]
[1723741150363,0.001827,59611.0,59610.0,1.42731288]
[1723741150580,0.001827,59611.0,59610.0,2.23268823]
[1723741150792,0.000826,59620.0,59619.0,0.838657]
[1723741150999,0.000826,59620.0,59619.0,1.98566261]
[1723741151194,0.000826,59620.0,59619.0,2.00665359]
[1723741151450,0.000826,59620.0,59619.0,0.99672924]
[1723741151649,0.000826,59620.0,59619.0,0.89614651]
[1723741151848,0.000826,59620.0,59619.0,0.9715634]
[1723741152112,0.000826,59620.0,59619.0,0.89614651]
[1723741152261,0.001826,59620.0,59619.0,1.37133605]
[1723741152491,0.001826,59620.0,59619.0,1.01066649]
[1723741152664,0.000826,59620.0,59619.0,1.35733605]
[1723741152916,0.000826,59620.0,59619.0,1.24160951]
[1723741153239,0.000826,59620.0,59619.0,1.41316405]
[1723741153661,0.000826,59620.0,59619.0,1.53376334]
[1723741153868,0.000826,59620.0,59619.0,1.52876334]
[1723741154070,0.000826,59620.0,59619.0,1.67336334]
[1723741154279,0.000826,59620.0,59619.0,1.88313629]
[1723741154722,0.000826,59620.0,59619.0,2.00869168]
[1723741154933,0.000826,59620.0,59619.0,2.01669168]
[1723741155342,0.000826,59620.0,59619.0,2.01769168]
[1723741155548,0.000826,59620.0,59619.0,1.89213629]
[1723741155757,0.000826,59620.0,59619.0,1.89713629]
[1723741155997,0.000826,59620.0,59619.0,2.23259929]
[1723741156199,0.000826,59620.0,59619.0,2.39731691]
[1723741156404,0.000826,59620.0,59619.0,2.37131691]
[1723741156609,0.000826,59620.0,59619.0,2.21859929]
[1723741156813,0.000826,59620.0,59619.0,1.90913629]
[1723741156984,0.000826,59620.0,59619.0,1.89513629]
[1723741157937,0.000826,59620.0,59619.0,2.21859929]
[1723741158144,0.000826,59620.0,59619.0,1.88313629]
[1723741158345,0.000826,59620.0,59619.0,1.91113629]
[1723741158543,0.000826,59620.0,59619.0,2.03650353]
[1723741158741,0.000826,59620.0,59619.0,1.88313629]
[1723741158968,0.000826,59620.0,59619.0,1.89713629]
[1723741159445,0.000826,59620.0,59619.0,2.02246927]
[1723741159677,0.000826,59620.0,59619.0,2.37193227]
[1723741160090,0.000826,59620.0,59619.0,2.03646927]
[1723741160531,0.000826,59620.0,59619.0,1.91113629]
[1723741160722,0.000826,59620.0,59619.0,2.37190975]
[1723741160942,0.000826,59620.0,59619.0,1.91113629]
[1723741161150,0.000826,59620.0,59619.0,2.01138031]
[1723741161350,0.000826,59620.0,59619.0,1.91113629]
[1723741161550,0.000826,59620.0,59619.0,2.01136508]
[1723741161910,0.000826,59620.0,59619.0,2.34682808]
[1723741162129,0.000826,59620.0,59619.0,2.01136508]
[1723741163540,0.000826,59620.0,59619.0,1.91110991]
[1723741164580,0.000826,59620.0,59619.0,1.98624338]
[1723741165752,0.000826,59620.0,59619.0,2.32170638]
[1723741165941,0.000826,59630.0,59629.0,0.838517]
[1723741166243,0.000826,59630.0,59629.0,0.85940186]
[1723741167177,0.000826,59630.0,59629.0,0.86840186]
[1723741167607,0.000826,59630.0,59629.0,1.5286634]
[1723741168029,0.000826,59630.0,59629.0,1.8640704]
[1723741168465,0.000826,59630.0,59629.0,1.86629035]
[1723741168661,0.000826,59630.0,59629.0,1.88029035]
[1723741169072,0.000826,59630.0,59629.0,1.87129035]
[1723741169714,0.000826,59630.0,59629.0,1.85729035]
[1723741170070,0.000826,59630.0,59629.0,1.87129035]
[1723741170480,0.000826,59630.0,59629.0,1.92133412]
[1723741170687,0.00828,59634.0,59633.0,1.319144]
[1723741170889,0.00828,59636.0,59635.0,0.536659]
[1723741170890,0.00071396,59636.0,59635.0,0.536659]
[1723741171093,0.00071396,59636.0,59635.0,3.01976571]
[1723741171248,0.00071396,59636.0,59635.0,2.68976571]